[Event "Queens Festival Europe 2022"]
[Site "Tornelo"]
[Date "2022.06.19"]
[Round "2.8"]
[White "Smith, Olivia"]
[Black "Tsakona, Maria"]
[Result "1-0"]
[ECO "B10"]
[WhiteElo "2039"]
[BlackElo "2007"]
[Annotator "NA RC"]
[PlyCount "133"]
[EventDate "2022.06.19"]
[EventType "swiss"]
[EventCountry "NET"]
[SourceTitle "playchess.com"]
[Source "ChessBase"]
[SourceQuality "1"]
[TimeControl "180+2"]

1. e4 {[%emt 0:00:02]} c6 {[%emt 0:00:07]} 2. d3 {[%emt 0:00:09]} d5 {[%emt 0:00:01]} 3. Nd2 {[%emt 0:00:02]} e5 {[%emt 0:00:02]} 4. Ngf3 {[%emt 0:00:02]} Bd6 {[%emt 0:00:01]} 5. g3 {[%emt 0:00:02]} Nf6 {[%emt 0:00:03]} 6. Bg2 {[%emt 0:00:02]} O-O {[%emt 0:00:01]} 7. O-O {[%emt 0:00:02]} Bg4 {[%emt 0:00:01]} 8. h3 {[%emt 0:00:02]} Bh5 {[%emt 0:00:01]} 9. Kh2 {[%emt 0:00:05]} Re8 {[%emt 0:00:02]} 10. Re1 {[%emt 0:00:06]} Nbd7 {[%emt 0:00:37]} 11. Nf1 {[%emt 0:00:07]} dxe4 {[%emt 0:00:02]} 12. dxe4 {[%emt 0:00:02]} Bf8 {[%emt 0:00:04]} 13. g4 {[%emt 0:00:07]} Bg6 {[%emt 0:00:02]} 14. Ng3 {[%emt 0:00:01]} Qc7 {[%emt 0:00:04]} 15. Nh4 {[%emt 0:00:07]} Rad8 {[%emt 0:00:06]} 16. Qe2 {[%emt 0:00:06]} Nc5 {[%emt 0:00:02]} 17. Nhf5 {[%emt 0:00:09]} a5 {[%emt 0:00:14]} 18. Bg5 {[%emt 0:00:03]} Nfd7 {[%emt 0:00:15]} 19. Bxd8 {[%emt 0:00:04]} Rxd8 {[%emt 0:00:04]} 20. Rad1 {[%emt 0:00:05]} Re8 {[%emt 0:00:08]} 21. h4 {[%emt 0:00:20]} Ne6 {[%emt 0:00:19]} 22. Qd2 {[%emt 0:00:28]} Ndc5 {[%emt 0:00:03]} 23. Ne2 {[%emt 0:00:11]} h5 {[%emt 0:00:22]} 24. gxh5 {[%emt 0:00:14]} Bxh5 {[%emt 0:00:00]} 25. Nfg3 {[%emt 0:00:06]} Bxe2 {[%emt 0:00:21]} 26. Qxe2 {[%emt 0:00:05]} Nd4 {[%emt 0:00:14]} 27. Qg4 {[%emt 0:00:21]} Nxc2 {[%emt 0:00:08]} 28. Rg1 {[%emt 0:00:10]} Nd4 {[%emt 0:00:05]} 29. h5 {[%emt 0:00:07]} Nce6 {[%emt 0:00:05]} 30. h6 {[%emt 0:00:09]} g6 {[%emt 0:00:11]} 31. Nh5 {[%emt 0:00:10]} Qe7 {[%emt 0:00:03]} 32. Ng3 {[%emt 0:00:08]} Bxh6 {[%emt 0:00:04]} 33. Nf5 {[%emt 0:00:01]} Nxf5 {[%emt 0:00:03]} 34. exf5 {[%emt 0:00:01]} Nf4 {[%emt 0:00:01]} 35. fxg6 {[%emt 0:00:04]} fxg6 {[%emt 0:00:02]} 36. Be4 {[%emt 0:00:02]} Qf6 {[%emt 0:00:05]} 37. Rg3 {[%emt 0:00:07]} Bg7 {[%emt 0:00:02]} 38. Rdg1 {[%emt 0:00:02]} Rd8 {[%emt 0:00:05]} 39. Bxg6 {[%emt 0:00:02]} Nxg6 {[%emt 0:00:01]} 40. Qxg6 {[%emt 0:00:01]} Qxf2+ {[%emt 0:00:01]} 41. R1g2 {[%emt 0:00:02]} Qf8 {[%emt 0:00:09]} 42. Qxg7+ {[%emt 0:00:01]} Qxg7 {[%emt 0:00:01]} 43. Rxg7+ {[%emt 0:00:03]} Kf8 {[%emt 0:00:00]} 44. Rxb7 {[%emt 0:00:03]} a4 {[%emt 0:00:04]} 45. Re2 {[%emt 0:00:01]} Re8 {[%emt 0:00:02]} 46. Ra7 {[%emt 0:00:03]} Re6 {[%emt 0:00:02]} 47. Rxa4 {[%emt 0:00:02]} Kf7 {[%emt 0:00:01]} 48. Rae4 {[%emt 0:00:02]} Kf6 {[%emt 0:00:00]} 49. a4 {[%emt 0:00:02]} Kf5 {[%emt 0:00:00]} 50. a5 {[%emt 0:00:02]} Rh6+ {[%emt 0:00:00]} 51. Kg2 {[%emt 0:00:02]} c5 {[%emt 0:00:00]} 52. Kf2 {[%emt 0:00:02]} Rh2+ {[%emt 0:00:02]} 53. Ke1 {[%emt 0:00:02]} Rh1+ {[%emt 0:00:00]} 54. Kd2 {[%emt 0:00:01]} Ra1 {[%emt 0:00:00]} 55. Rxe5+ {[%emt 0:00:02]} Kf6 {[%emt 0:00:00]} 56. Rxc5 {[%emt 0:00:02]} Ra2 {[%emt 0:00:02]} 57. Kc3 {[%emt 0:00:01]} Ra4 {[%emt 0:00:02]} 58. Kb3 {[%emt 0:00:02]} Rf4 {[%emt 0:00:03]} 59. Rd2 {[%emt 0:00:01]} Rf3+ {[%emt 0:00:01]} 60. Kb4 {[%emt 0:00:02]} Rf4+ {[%emt 0:00:01]} 61. Kb5 {[%emt 0:00:01]} Rf1 {[%emt 0:00:02]} 62. Rd6+ {[%emt 0:00:02]} Ke7 {[%emt 0:00:02]} 63. Rb6 {[%emt 0:00:02]} Rf2 {[%emt 0:00:02]} 64. Rc7+ {[%emt 0:00:01]} Kd8 {[%emt 0:00:01]} 65. Rh7 {[%emt 0:00:03]} Rxb2+ {[%emt 0:00:02]} 66. Ka6 {[%emt 0:00:01]} Re2 {[%emt 0:00:05]} 67. Rb8# {[%emt 0:00:02]} 1-0

[Event "Queens Festival Europe 2022"]
[Site "Tornelo"]
[Date "2022.06.19"]
[Round "2.9"]
[White "Mdivani, Maka"]
[Black "Rahimli, Izzat"]
[Result "1-0"]
[ECO "C01"]
[WhiteElo "1901"]
[BlackElo "1817"]
[Annotator "NA RC"]
[PlyCount "117"]
[EventDate "2022.06.19"]
[EventType "swiss"]
[EventCountry "NET"]
[SourceTitle "playchess.com"]
[Source "ChessBase"]
[SourceQuality "1"]
[TimeControl "180+2"]

1. e4 {[%emt 0:00:02]} e6 {[%emt 0:00:07]} 2. Nf3 {[%emt 0:00:03]} d5 {[%emt 0:00:02]} 3. exd5 {[%emt 0:00:06]} exd5 {[%emt 0:00:04]} 4. d4 {[%emt 0:00:05]} Nf6 {[%emt 0:00:03]} 5. Bd3 {[%emt 0:00:03]} Be7 {[%emt 0:00:03]} 6. O-O {[%emt 0:00:08]} O-O {[%emt 0:00:05]} 7. h3 {[%emt 0:00:02]} h6 {[%emt 0:00:03]} 8. Bf4 {[%emt 0:00:04]} b6 {[%emt 0:00:08]} 9. c4 {[%emt 0:00:10]} Bb7 {[%emt 0:00:04]} 10. Nc3 {[%emt 0:00:05]} Nbd7 {[%emt 0:00:12]} 11. Re1 {[%emt 0:00:04]} c5 {[%emt 0:00:10]} 12. Rc1 {[%emt 0:00:08]} Rc8 {[%emt 0:00:05]} 13. Qe2 {[%emt 0:00:12]} Re8 {[%emt 0:00:17]} 14. Nb5 {[%emt 0:00:04]} cxd4 {[%emt 0:00:29]} 15. Qd2 {[%emt 0:00:13]} Ne4 {[%emt 0:00:08]} 16. Bxe4 {[%emt 0:00:04]} dxe4 {[%emt 0:00:02]} 17. Nfxd4 {[%emt 0:00:03]} Nc5 {[%emt 0:00:09]} 18. Rcd1 {[%emt 0:00:48]} a6 {[%emt 0:00:05]} 19. Nc3 {[%emt 0:00:04]} Bf6 {[%emt 0:00:04]} 20. Qe3 {[%emt 0:00:05]} Nd3 {[%emt 0:00:04]} 21. Nf5 {[%emt 0:00:10]} Qd7 {[%emt 0:00:22]} 22. Ng3 {[%emt 0:00:21]} Bd4 {[%emt 0:00:10]} 23. Qe2 {[%emt 0:00:15]} Nxe1 {[%emt 0:00:18]} 24. Qxe1 {[%emt 0:00:03]} Bxc3 {[%emt 0:00:05]} 25. Rxd7 {[%emt 0:00:07]} Bxe1 {[%emt 0:00:04]} 26. Rxb7 {[%emt 0:00:05]} Rcd8 {[%emt 0:00:05]} 27. b3 {[%emt 0:00:05]} Bd2 {[%emt 0:00:03]} 28. Bc7 {[%emt 0:00:06]} Rd7 {[%emt 0:00:03]} 29. Ra7 {[%emt 0:00:05]} Rc8 {[%emt 0:00:05]} 30. Bxb6 {[%emt 0:00:03]} Rxa7 {[%emt 0:00:02]} 31. Bxa7 {[%emt 0:00:02]} g6 {[%emt 0:00:02]} 32. Nxe4 {[%emt 0:00:03]} Bc1 {[%emt 0:00:03]} 33. Bd4 {[%emt 0:00:03]} f5 {[%emt 0:00:09]} 34. Nf6+ {[%emt 0:00:02]} Kf7 {[%emt 0:00:02]} 35. Nd5 {[%emt 0:00:02]} Re8 {[%emt 0:00:04]} 36. c5 {[%emt 0:00:02]} Re1+ {[%emt 0:00:03]} 37. Kh2 {[%emt 0:00:03]} Bf4+ {[%emt 0:00:03]} 38. Nxf4 {[%emt 0:00:02]} Rd1 {[%emt 0:00:03]} 39. Be3 {[%emt 0:00:03]} Ra1 {[%emt 0:00:03]} 40. c6 {[%emt 0:00:02]} Rxa2 {[%emt 0:00:02]} 41. c7 {[%emt 0:00:01]} Rc2 {[%emt 0:00:02]} 42. Nd5 {[%emt 0:00:02]} Ke6 {[%emt 0:00:02]} 43. Nf4+ {[%emt 0:00:03]} Kd7 {[%emt 0:00:03]} 44. Bb6 {[%emt 0:00:03]} g5 {[%emt 0:00:03]} 45. Nd5 {[%emt 0:00:02]} Rxf2 {[%emt 0:00:02]} 46. Nf6+ {[%emt 0:00:01]} Kc8 {[%emt 0:00:03]} 47. Nd5 {[%emt 0:00:02]} Rc2 {[%emt 0:00:03]} 48. Ne7+ {[%emt 0:00:02]} Kb7 {[%emt 0:00:01]} 49. c8=Q+ {[%emt 0:00:03]} Rxc8 {[%emt 0:00:03]} 50. Nxc8 {[%emt 0:00:02]} Kxc8 {[%emt 0:00:02]} 51. Be3 {[%emt 0:00:02]} f4 {[%emt 0:00:02]} 52. Bd4 {[%emt 0:00:02]} h5 {[%emt 0:00:02]} 53. Kg1 {[%emt 0:00:02]} Kc7 {[%emt 0:00:02]} 54. Kf2 {[%emt 0:00:01]} Kc6 {[%emt 0:00:02]} 55. b4 {[%emt 0:00:02]} Kb5 {[%emt 0:00:02]} 56. Bc3 {[%emt 0:00:03]} g4 {[%emt 0:00:02]} 57. hxg4 {[%emt 0:00:03]} hxg4 {[%emt 0:00:02]} 58. Bd2 {[%emt 0:00:02]} f3 {[%emt 0:00:03]} 59. g3 {[%emt 0:00:03]} 1-0

[Event "Queens Festival Europe 2022"]
[Site "Tornelo"]
[Date "2022.06.19"]
[Round "2.9"]
[White "Farzaliyeva, Shams"]
[Black "Aydogan, Arya"]
[Result "0-1"]
[ECO "D31"]
[WhiteElo "1219"]
[BlackElo "1409"]
[Annotator "NA RC"]
[PlyCount "42"]
[EventDate "2022.06.19"]
[EventType "swiss"]
[EventCountry "NET"]
[SourceTitle "playchess.com"]
[Source "ChessBase"]
[SourceQuality "1"]
[TimeControl "180+2"]

1. d4 {[%emt 0:00:02]} d5 {[%emt 0:00:04]} 2. c4 {[%emt 0:00:02]} e6 {[%emt 0:00:02]} 3. Nc3 {[%emt 0:00:01]} a6 {[%emt 0:00:01]} 4. Nf3 {[%emt 0:00:14]} dxc4 {[%emt 0:00:02]} 5. e4 {[%emt 0:00:03]} b5 {[%emt 0:00:02]} 6. a4 {[%emt 0:00:03]} b4 {[%emt 0:00:01]} 7. Nb1 {[%emt 0:00:05]} Bb7 {[%emt 0:00:10]} 8. e5 {[%emt 0:00:03]} c5 {[%emt 0:00:27]} 9. Bxc4 {[%emt 0:00:29]} cxd4 {[%emt 0:00:28]} 10. O-O {[%emt 0:00:02]} Nc6 {[%emt 0:00:05]} 11. Nbd2 {[%emt 0:00:12]} Bc5 {[%emt 0:00:06]} 12. Nb3 {[%emt 0:00:02]} Ba7 {[%emt 0:00:01]} 13. Bg5 {[%emt 0:00:12]} Nge7 {[%emt 0:00:04]} 14. Qd3 {[%emt 0:00:04]} h6 {[%emt 0:00:05]} 15. Bxe7 {[%emt 0:00:05]} Qxe7 {[%emt 0:00:03]} 16. Nbxd4 {[%emt 0:00:10]} Nxd4 {[%emt 0:00:11]} 17. Nxd4 {[%emt 0:00:02]} Rd8 {[%emt 0:00:02]} 18. Nc6 {[%emt 0:00:04]} Bxc6 {[%emt 0:00:07]} 19. Qg3 {[%emt 0:00:05]} O-O {[%emt 0:00:03]} 20. Rad1 {[%emt 0:00:02]} Rxd1 {[%emt 0:00:02]} 21. Rxd1 {[%emt 0:00:01]} Rd8 {[%emt 0:00:01]} 0-1

[Event "Queens Festival Europe 2022"]
[Site "Tornelo"]
[Date "2022.06.19"]
[Round "2.10"]
[White "Roy, Ali"]
[Black "Malikova, Ulviyya"]
[Result "0-1"]
[ECO "A41"]
[WhiteElo "1893"]
[BlackElo "1805"]
[Annotator "NA RC"]
[PlyCount "66"]
[EventDate "2022.06.19"]
[EventType "swiss"]
[EventCountry "NET"]
[SourceTitle "playchess.com"]
[Source "ChessBase"]
[SourceQuality "1"]
[TimeControl "180+2"]

1. Nf3 {[%emt 0:00:02]} g6 {[%emt 0:00:10]} 2. g3 {[%emt 0:00:04]} Bg7 {[%emt 0:00:02]} 3. Bg2 {[%emt 0:00:01]} d6 {[%emt 0:00:01]} 4. O-O {[%emt 0:00:03]} c6 {[%emt 0:00:02]} 5. d4 {[%emt 0:00:02]} Qc7 {[%emt 0:00:02]} 6. c4 {[%emt 0:00:03]} Nd7 {[%emt 0:00:01]} 7. Nc3 {[%emt 0:00:03]} e5 {[%emt 0:00:04]} 8. dxe5 {[%emt 0:00:07]} dxe5 {[%emt 0:00:13]} 9. Qc2 {[%emt 0:00:11]} Ne7 {[%emt 0:00:06]} 10. b3 {[%emt 0:00:02]} O-O {[%emt 0:00:02]} 11. Bb2 {[%emt 0:00:02]} h6 {[%emt 0:00:04]} 12. Rad1 {[%emt 0:00:12]} f5 {[%emt 0:00:04]} 13. e4 {[%emt 0:00:20]} Nc5 {[%emt 0:00:23]} 14. b4 {[%emt 0:00:13]} Ne6 {[%emt 0:00:03]} 15. c5 {[%emt 0:00:21]} Kh7 {[%emt 0:00:02]} 16. Rd6 {[%emt 0:00:09]} Nd4 {[%emt 0:00:09]} 17. Nxd4 {[%emt 0:00:14]} exd4 {[%emt 0:00:02]} 18. Ne2 {[%emt 0:00:02]} Be5 {[%emt 0:00:11]} 19. Bxd4 {[%emt 0:00:37]} Bxd6 {[%emt 0:00:08]} 20. cxd6 {[%emt 0:00:00]} Qxd6 {[%emt 0:00:02]} 21. Rd1 {[%emt 0:00:05]} Qe6 {[%emt 0:00:05]} 22. Bc5 {[%emt 0:00:08]} b6 {[%emt 0:00:12]} 23. Nf4 {[%emt 0:00:03]} Qf7 {[%emt 0:00:06]} 24. Bd6 {[%emt 0:00:07]} Bb7 {[%emt 0:00:08]} 25. e5 {[%emt 0:00:03]} Nd5 {[%emt 0:00:03]} 26. e6 {[%emt 0:00:13]} Qf6 {[%emt 0:00:07]} 27. Bxd5 {[%emt 0:00:03]} cxd5 {[%emt 0:00:04]} 28. Qc7+ {[%emt 0:00:03]} Qg7 {[%emt 0:00:13]} 29. e7 {[%emt 0:00:06]} Rfe8 {[%emt 0:00:06]} 30. Ne6 {[%emt 0:00:04]} Qf6 {[%emt 0:00:09]} 31. Nf8+ {[%emt 0:00:10]} Kg8 {[%emt 0:00:02]} 32. Qxb7 {[%emt 0:00:05]} Qf7 {[%emt 0:00:05]} 33. Rxd5 {[%emt 0:00:07]} Rac8 {[%emt 0:00:02]} 0-1

[Event "Queens Festival Europe 2022"]
[Site "Tornelo"]
[Date "2022.06.19"]
[Round "2.10"]
[White "Ostafiev, Cristina"]
[Black "Vujovic, Vera"]
[Result "0-1"]
[ECO "B50"]
[WhiteElo "1173"]
[BlackElo "1353"]
[Annotator "NA RC"]
[PlyCount "58"]
[EventDate "2022.06.19"]
[EventType "swiss"]
[EventCountry "NET"]
[SourceTitle "playchess.com"]
[Source "ChessBase"]
[SourceQuality "1"]
[TimeControl "180+2"]

1. e4 {[%emt 0:00:02]} c5 {[%emt 0:00:05]} 2. Nc3 {[%emt 0:00:04]} d6 {[%emt 0:00:01]} 3. Bc4 {[%emt 0:00:03]} Nf6 {[%emt 0:00:03]} 4. d3 {[%emt 0:00:05]} g6 {[%emt 0:00:01]} 5. Bg5 {[%emt 0:00:04]} Bg7 {[%emt 0:00:02]} 6. Nf3 {[%emt 0:00:06]} Nc6 {[%emt 0:00:02]} 7. Qd2 {[%emt 0:00:05]} a6 {[%emt 0:00:03]} 8. a3 {[%emt 0:00:17]} O-O {[%emt 0:00:04]} 9. h4 {[%emt 0:00:03]} h5 {[%emt 0:00:03]} 10. Bh6 {[%emt 0:00:08]} e6 {[%emt 0:00:06]} 11. Nh2 {[%emt 0:00:18]} d5 {[%emt 0:00:03]} 12. exd5 {[%emt 0:00:11]} exd5 {[%emt 0:00:02]} 13. Bb3 {[%emt 0:00:11]} Re8+ {[%emt 0:00:02]} 14. Ne2 {[%emt 0:00:06]} Nd4 {[%emt 0:00:02]} 15. Be3 {[%emt 0:00:15]} Qe7 {[%emt 0:00:10]} 16. O-O-O {[%emt 0:00:06]} Nxe2+ {[%emt 0:00:05]} 17. Qxe2 {[%emt 0:00:05]} d4 {[%emt 0:00:02]} 18. Qf3 {[%emt 0:00:20]} dxe3 {[%emt 0:00:03]} 19. fxe3 {[%emt 0:00:15]} Qxe3+ {[%emt 0:00:03]} 20. Qxe3 {[%emt 0:00:03]} Rxe3 {[%emt 0:00:03]} 21. d4 {[%emt 0:00:08]} cxd4 {[%emt 0:00:06]} 22. Rxd4 {[%emt 0:00:05]} Bg4 {[%emt 0:00:11]} 23. Nxg4 {[%emt 0:00:13]} Nxg4 {[%emt 0:00:03]} 24. Rf1 {[%emt 0:00:18]} Bxd4 {[%emt 0:00:16]} 25. Rxf7 {[%emt 0:00:13]} Kh8 {[%emt 0:00:03]} 26. Rxb7 {[%emt 0:00:05]} Rae8 {[%emt 0:00:04]} 27. Rd7 {[%emt 0:00:03]} Bg7 {[%emt 0:00:03]} 28. Kd2 {[%emt 0:00:02]} Re2+ {[%emt 0:00:03]} 29. Kd3 {[%emt 0:00:04]} R8e3+ {[%emt 0:00:02]} 0-1

[Event "Queens Festival Europe 2022"]
[Site "Tornelo"]
[Date "2022.06.19"]
[Round "2.13"]
[White "Malaieru, Alexandra-Gabriela"]
[Black "Caku, Kler"]
[Result "0-1"]
[ECO "A47"]
[WhiteElo "1129"]
[BlackElo "1542"]
[Annotator "NA RC"]
[PlyCount "70"]
[EventDate "2022.06.19"]
[EventType "swiss"]
[EventCountry "NET"]
[SourceTitle "playchess.com"]
[Source "ChessBase"]
[SourceQuality "1"]
[TimeControl "180+2"]

1. d4 {[%emt 0:00:02]} d5 {[%emt 0:00:04]} 2. e3 {[%emt 0:00:04]} e6 {[%emt 0:00:02]} 3. Nf3 {[%emt 0:00:04]} Nf6 {[%emt 0:00:02]} 4. Bd3 {[%emt 0:00:01]} Nbd7 {[%emt 0:00:03]} 5. Nbd2 {[%emt 0:00:02]} Be7 {[%emt 0:00:02]} 6. O-O {[%emt 0:00:02]} b6 {[%emt 0:00:01]} 7. e4 {[%emt 0:00:01]} dxe4 {[%emt 0:00:02]} 8. Nxe4 {[%emt 0:00:03]} Bb7 {[%emt 0:00:01]} 9. Qe2 {[%emt 0:00:10]} O-O {[%emt 0:00:04]} 10. Bf4 {[%emt 0:00:07]} c5 {[%emt 0:00:05]} 11. c3 {[%emt 0:00:15]} Nd5 {[%emt 0:00:04]} 12. Bg3 {[%emt 0:00:06]} cxd4 {[%emt 0:00:11]} 13. Nxd4 {[%emt 0:00:12]} Nc5 {[%emt 0:00:06]} 14. Nxc5 {[%emt 0:00:05]} Bxc5 {[%emt 0:00:13]} 15. Qe4 {[%emt 0:00:10]} g6 {[%emt 0:00:02]} 16. Bh4 {[%emt 0:00:06]} Qc7 {[%emt 0:00:08]} 17. Bg3 {[%emt 0:00:16]} Qd7 {[%emt 0:00:29]} 18. Qh4 {[%emt 0:00:21]} Be7 {[%emt 0:00:06]} 19. Qe4 {[%emt 0:00:25]} Nxc3 {[%emt 0:00:21]} 20. Qe1 {[%emt 0:00:20]} Qxd4 {[%emt 0:00:05]} 21. bxc3 {[%emt 0:00:05]} Qxd3 {[%emt 0:00:03]} 22. Rd1 {[%emt 0:00:11]} Qb5 {[%emt 0:00:04]} 23. Be5 {[%emt 0:00:16]} Qc6 {[%emt 0:00:06]} 24. f3 {[%emt 0:00:05]} Rfd8 {[%emt 0:00:11]} 25. Bd4 {[%emt 0:00:15]} Bc5 {[%emt 0:00:05]} 26. Bxc5 {[%emt 0:00:04]} Qxc5+ {[%emt 0:00:02]} 27. Kh1 {[%emt 0:00:02]} Qc7 {[%emt 0:00:04]} 28. Qe3 {[%emt 0:00:03]} Rxd1 {[%emt 0:00:04]} 29. Rxd1 {[%emt 0:00:02]} Rd8 {[%emt 0:00:02]} 30. Rxd8+ {[%emt 0:00:03]} Qxd8 {[%emt 0:00:00]} 31. h3 {[%emt 0:00:02]} Qd1+ {[%emt 0:00:03]} 32. Kh2 {[%emt 0:00:01]} Qd6+ {[%emt 0:00:01]} 33. Kh1 {[%emt 0:00:02]} Qc5 {[%emt 0:00:03]} 34. Qe2 {[%emt 0:00:04]} Qxc3 {[%emt 0:00:08]} 35. Qf1 {[%emt 0:00:03]} Bd5 {[%emt 0:00:09]} 0-1

[Event "Queens Festival Europe 2022"]
[Site "Tornelo"]
[Date "2022.06.19"]
[Round "2.15"]
[White "Helgadottir, Idunn"]
[Black "Ismayilova, Salbinaz"]
[Result "1-0"]
[ECO "D32"]
[WhiteElo "1570"]
[BlackElo "1090"]
[Annotator "NA RC"]
[PlyCount "91"]
[EventDate "2022.06.19"]
[EventType "swiss"]
[EventCountry "NET"]
[SourceTitle "playchess.com"]
[Source "ChessBase"]
[SourceQuality "1"]
[TimeControl "180+2"]

1. d4 {[%emt 0:00:02]} d5 {[%emt 0:00:04]} 2. c4 {[%emt 0:00:03]} e6 {[%emt 0:00:03]} 3. Nc3 {[%emt 0:00:02]} c5 {[%emt 0:00:03]} 4. Nf3 {[%emt 0:00:02]} Nf6 {[%emt 0:00:03]} 5. Bg5 {[%emt 0:00:02]} Nc6 {[%emt 0:00:07]} 6. cxd5 {[%emt 0:00:01]} exd5 {[%emt 0:00:03]} 7. Bxf6 {[%emt 0:00:09]} Qxf6 {[%emt 0:00:07]} 8. Nxd5 {[%emt 0:00:02]} Qd6 {[%emt 0:00:09]} 9. dxc5 {[%emt 0:00:04]} Qd7 {[%emt 0:00:08]} 10. Rc1 {[%emt 0:00:21]} Qd8 {[%emt 0:00:23]} 11. Qd2 {[%emt 0:00:35]} Be6 {[%emt 0:00:05]} 12. Nc3 {[%emt 0:00:06]} Qxd2+ {[%emt 0:00:06]} 13. Nxd2 {[%emt 0:00:02]} Bxc5 {[%emt 0:00:05]} 14. Nb5 {[%emt 0:00:09]} Bb6 {[%emt 0:00:07]} 15. Nd6+ {[%emt 0:00:02]} Ke7 {[%emt 0:00:14]} 16. Nxb7 {[%emt 0:00:12]} Rab8 {[%emt 0:00:03]} 17. Nc5 {[%emt 0:00:04]} Bxc5 {[%emt 0:00:12]} 18. Rxc5 {[%emt 0:00:05]} Nd4 {[%emt 0:00:28]} 19. b3 {[%emt 0:00:27]} Rb7 {[%emt 0:00:07]} 20. e3 {[%emt 0:00:04]} Nf5 {[%emt 0:00:05]} 21. Ba6 {[%emt 0:00:10]} Rd7 {[%emt 0:00:03]} 22. Bc8 {[%emt 0:00:09]} Rd6 {[%emt 0:00:15]} 23. Bxe6 {[%emt 0:00:03]} Kxe6 {[%emt 0:00:06]} 24. Nf3 {[%emt 0:00:10]} Rhd8 {[%emt 0:00:05]} 25. O-O {[%emt 0:00:05]} Ne7 {[%emt 0:00:09]} 26. Ng5+ {[%emt 0:00:02]} Kf6 {[%emt 0:00:04]} 27. Ne4+ {[%emt 0:00:02]} Ke6 {[%emt 0:00:03]} 28. Nxd6 {[%emt 0:00:02]} Rxd6 {[%emt 0:00:01]} 29. Rc7 {[%emt 0:00:05]} a6 {[%emt 0:00:03]} 30. Rfc1 {[%emt 0:00:04]} Nf5 {[%emt 0:00:03]} 31. h3 {[%emt 0:00:02]} Nh6 {[%emt 0:00:03]} 32. R7c4 {[%emt 0:00:02]} Rd2 {[%emt 0:00:04]} 33. Rc6+ {[%emt 0:00:04]} Ke5 {[%emt 0:00:03]} 34. Rxa6 {[%emt 0:00:02]} Rd7 {[%emt 0:00:04]} 35. b4 {[%emt 0:00:01]} Rb7 {[%emt 0:00:02]} 36. Rb1 {[%emt 0:00:03]} Kd5 {[%emt 0:00:04]} 37. b5 {[%emt 0:00:02]} Kc5 {[%emt 0:00:02]} 38. Rc6+ {[%emt 0:00:01]} Kd5 {[%emt 0:00:05]} 39. Rc2 {[%emt 0:00:06]} Nf5 {[%emt 0:00:04]} 40. a4 {[%emt 0:00:02]} Nd6 {[%emt 0:00:03]} 41. b6 {[%emt 0:00:02]} Nc4 {[%emt 0:00:04]} 42. a5 {[%emt 0:00:03]} Nxa5 {[%emt 0:00:04]} 43. Rb5+ {[%emt 0:00:02]} Kd6 {[%emt 0:00:06]} 44. Rxa5 {[%emt 0:00:01]} Rxb6 {[%emt 0:00:01]} 45. Ra7 {[%emt 0:00:03]} Rb1+ {[%emt 0:00:05]} 46. Kh2 {[%emt 0:00:02]} 1-0

[Event "Queens Festival Europe 2022"]
[Site "Tornelo"]
[Date "2022.06.19"]
[Round "3.1"]
[White "Ibrahimova, Sabina"]
[Black "Richtrova, Eliska"]
[Result "1-0"]
[ECO "B07"]
[WhiteElo "2146"]
[BlackElo "2204"]
[Annotator "NA RC"]
[PlyCount "61"]
[EventDate "2022.06.19"]
[EventType "swiss"]
[EventCountry "NET"]
[SourceTitle "playchess.com"]
[Source "ChessBase"]
[SourceQuality "1"]
[TimeControl "180+2"]

1. e4 {[%emt 0:00:02]} d6 {[%emt 0:00:05]} 2. d4 {[%emt 0:00:02]} Nf6 {[%emt 0:00:02]} 3. Nc3 {[%emt 0:00:01]} g6 {[%emt 0:00:02]} 4. Be2 {[%emt 0:00:04]} c6 {[%emt 0:00:04]} 5. h4 {[%emt 0:00:06]} h5 {[%emt 0:00:04]} 6. f3 {[%emt 0:00:02]} Nbd7 {[%emt 0:00:03]} 7. Be3 {[%emt 0:00:02]} e5 {[%emt 0:00:01]} 8. Qd2 {[%emt 0:00:04]} Qa5 {[%emt 0:00:04]} 9. Nh3 {[%emt 0:00:04]} b5 {[%emt 0:00:11]} 10. Ng5 {[%emt 0:00:06]} b4 {[%emt 0:00:06]} 11. Nd1 {[%emt 0:00:02]} Nb6 {[%emt 0:00:12]} 12. a3 {[%emt 0:00:18]} c5 {[%emt 0:00:06]} 13. dxe5 {[%emt 0:00:41]} dxe5 {[%emt 0:00:03]} 14. O-O {[%emt 0:00:14]} Ba6 {[%emt 0:00:03]} 15. Nf2 {[%emt 0:00:05]} Bxe2 {[%emt 0:00:04]} 16. Qxe2 {[%emt 0:00:02]} Be7 {[%emt 0:00:06]} 17. axb4 {[%emt 0:00:30]} Qxb4 {[%emt 0:00:04]} 18. Nd3 {[%emt 0:00:02]} Qb5 {[%emt 0:00:10]} 19. Qf2 {[%emt 0:00:06]} c4 {[%emt 0:00:08]} 20. Nxe5 {[%emt 0:00:33]} Qxe5 {[%emt 0:00:10]} 21. Bxb6 {[%emt 0:00:02]} O-O {[%emt 0:00:06]} 22. Bd4 {[%emt 0:00:03]} Qb5 {[%emt 0:00:04]} 23. c3 {[%emt 0:00:10]} a5 {[%emt 0:00:07]} 24. e5 {[%emt 0:00:12]} Nd5 {[%emt 0:00:07]} 25. f4 {[%emt 0:00:05]} Rab8 {[%emt 0:00:08]} 26. Rab1 {[%emt 0:00:02]} Nc7 {[%emt 0:00:19]} 27. f5 {[%emt 0:00:03]} Qd5 {[%emt 0:00:10]} 28. e6 {[%emt 0:00:07]} fxe6 {[%emt 0:00:04]} 29. f6 {[%emt 0:00:03]} Bd6 {[%emt 0:00:04]} 30. f7+ {[%emt 0:00:02]} Rxf7 {[%emt 0:00:17]} 31. Qxf7# {[%emt 0:00:02]} 1-0

[Event "Queens Festival Europe 2022"]
[Site "Tornelo"]
[Date "2022.06.19"]
[Round "3.1"]
[White "Grigoryan, Meri"]
[Black "Sava, Ana-Maria"]
[Result "1-0"]
[ECO "A41"]
[WhiteElo "1993"]
[BlackElo "1916"]
[Annotator "NA RC"]
[PlyCount "67"]
[EventDate "2022.06.19"]
[EventType "swiss"]
[EventCountry "NET"]
[SourceTitle "playchess.com"]
[Source "ChessBase"]
[SourceQuality "1"]
[TimeControl "180+2"]

1. d4 {[%emt 0:00:02]} g6 {[%emt 0:00:05]} 2. c4 {[%emt 0:00:02]} Bg7 {[%emt 0:00:02]} 3. Nc3 {[%emt 0:00:01]} d6 {[%emt 0:00:02]} 4. Nf3 {[%emt 0:00:01]} Bg4 {[%emt 0:00:03]} 5. e3 {[%emt 0:00:11]} Nd7 {[%emt 0:00:05]} 6. h3 {[%emt 0:00:01]} Bxf3 {[%emt 0:00:03]} 7. Qxf3 {[%emt 0:00:02]} c6 {[%emt 0:00:02]} 8. Bd3 {[%emt 0:00:02]} e5 {[%emt 0:00:02]} 9. d5 {[%emt 0:00:13]} c5 {[%emt 0:00:07]} 10. Ne4 {[%emt 0:00:08]} Ndf6 {[%emt 0:00:08]} 11. Nxf6+ {[%emt 0:00:10]} Nxf6 {[%emt 0:00:02]} 12. e4 {[%emt 0:00:01]} a6 {[%emt 0:00:06]} 13. O-O {[%emt 0:00:04]} O-O {[%emt 0:00:02]} 14. Bg5 {[%emt 0:00:04]} h6 {[%emt 0:00:03]} 15. Bd2 {[%emt 0:00:03]} Kh7 {[%emt 0:00:03]} 16. g4 {[%emt 0:00:02]} Rb8 {[%emt 0:00:06]} 17. a4 {[%emt 0:00:02]} Qd7 {[%emt 0:00:29]} 18. Qg3 {[%emt 0:00:06]} h5 {[%emt 0:00:35]} 19. f3 {[%emt 0:00:17]} Rh8 {[%emt 0:00:28]} 20. Kg2 {[%emt 0:00:01]} Kg8 {[%emt 0:00:02]} 21. Rh1 {[%emt 0:00:03]} Bh6 {[%emt 0:00:09]} 22. g5 {[%emt 0:00:03]} h4 {[%emt 0:00:13]} 23. Qf2 {[%emt 0:00:10]} Nh5 {[%emt 0:00:05]} 24. gxh6 {[%emt 0:00:03]} f6 {[%emt 0:00:03]} 25. f4 {[%emt 0:00:06]} Ng3 {[%emt 0:00:11]} 26. Rhe1 {[%emt 0:00:16]} Rf8 {[%emt 0:00:13]} 27. f5 {[%emt 0:00:06]} g5 {[%emt 0:00:02]} 28. b4 {[%emt 0:00:03]} b6 {[%emt 0:00:04]} 29. bxc5 {[%emt 0:00:02]} bxc5 {[%emt 0:00:04]} 30. Reb1 {[%emt 0:00:02]} Rxh6 {[%emt 0:00:03]} 31. Rb6 {[%emt 0:00:06]} Rc8 {[%emt 0:00:08]} 32. Rab1 {[%emt 0:00:02]} Rh7 {[%emt 0:00:07]} 33. Rxa6 {[%emt 0:00:08]} Nh5 {[%emt 0:00:09]} 34. Rab6 {[%emt 0:00:03]} 1-0